Workbook

Sheet Tabla
B4: Nº OPER. NECESARIAS PARA OBTENER UNA RACHA DE OPERACIONES GANADORAS
B5: Operaciones Consecutivas | C5: Nº Pérdidas Compensadas | D5: Porcentaje de Aciertos de nuestro Sistema de Trading | O5: 1 | P5: 1
D6: 0.35 | E6: 0.4 | F6: 0.45 | G6: 0.5 | H6: 0.55 | I6: 0.6 | J6: 0.65 | K6: 0.7 | L6: 0.75 | M6: 0.8 | O6: =+O5+1 -> 2 | P6: =+P5*2 -> 2
B7: 3 | C7: =SUM($P$5:P7) -> 7 | D7: =1/(D$6^$B7) -> 23.32361516 | E7: =1/(E$6^$B7) -> 15.625 | F7: =1/(F$6^$B7) -> 10.9739369 | G7: 8 | H7: 6.010518407 | I7: 4.62962963 | J7: 3.641329085 | K7: 2.915451895 | L7: 2.37037037 | M7: 1.953125 | O7: =+O6+1 -> 3 | P7: =+P6*2 -> 4
B8: 4 | C8: =SUM($P$5:P8) -> 15 | D8: =1/(D$6^$B8) -> 66.63890046 | E8: 39.0625 | F8: 24.38652644 | G8: 16 | H8: 10.92821529 | I8: 7.716049383 | J8: 5.602044746 | K8: 4.164931279 | L8: 3.160493827 | M8: 2.44140625 | O8: 4 | P8: 8
B9: 5 | C9: =SUM($P$5:P9) -> 31 | D9: 190.3968585 | E9: 97.65625 | F9: 54.19228099 | G9: 32 | H9: 19.86948234 | I9: 12.8600823 | J9: 8.618530379 | K9: 5.949901827 | L9: 4.21399177 | M9: 3.051757812 | O9: 5 | P9: 16
B10: 6 | C10: =SUM($P$5:P10) -> 63 | D10: 543.9910241 | E10: 244.140625 | F10: =1/(F$6^$B10) -> 120.4272911 | G10: 64 | H10: 36.12633152 | I10: 21.43347051 | J10: 13.25927751 | K10: 8.499859752 | L10: 5.618655693 | M10: 3.814697266 | O10: 6 | P10: 32
B11: 7 | C11: =SUM($P$5:P11) -> 127 | D11: 1554.260069 | E11: =1/(E$6^$B11) -> 610.3515625 | F11: 267.6162024 | G11: 128 | H11: 65.68423913 | I11: 35.72245085 | J11: 20.39888847 | K11: 12.14265679 | L11: 7.491540924 | M11: 4.768371582 | O11: 7 | P11: 64
B12: 8 | C12: =SUM($P$5:P12) -> 255 | D12: 4440.743054 | E12: 1525.878906 | F12: 594.702672 | G12: 256 | H12: 119.4258893 | I12: 59.53741808 | J12: 31.38290534 | K12: 17.34665256 | L12: 9.988721232 | M12: 5.960464478 | O12: 8 | P12: 128
B13: 9 | C13: =SUM($P$5:P13) -> 511 | D13: 12687.8373 | E13: 3814.697266 | F13: 1321.561493 | G13: 512 | H13: 217.1379806 | I13: 99.22903013 | J13: 48.28139283 | K13: 24.78093222 | L13: 13.31829498 | M13: 7.450580597 | O13: 9 | P13: 256
B14: 10 | C14: =SUM($P$5:P14) -> 1023 | D14: 36250.96371 | E14: 9536.743164 | F14: 2936.803319 | G14: 1024 | H14: 394.7963284 | I14: 165.3817169 | J14: 74.27906589 | K14: 35.40133175 | L14: 17.75772663 | M14: 9.313225746 | O14: 10 | P14: 512
B15: 11 | C15: =SUM($P$5:P15) -> 2047 | D15: 103574.182 | E15: 23841.85791 | F15: 6526.229597 | G15: 2048 | H15: 717.8115061 | I15: 275.6361948 | J15: 114.275486 | K15: 50.57333107 | L15: 23.67696885 | M15: 11.64153218 | O15: 11 | P15: 1024
B16: 12 | C16: =SUM($P$5:P16) -> 4095 | D16: 295926.2344 | E16: 59604.64478 | F16: 14502.73244 | G16: 4096 | H16: 1305.111829 | I16: 459.393658 | J16: 175.80844 | K16: 72.24761581 | L16: 31.56929179 | M16: 14.55191523 | O16: 12 | P16: 2048

Sheet AntiMartingala
AA1: Lotes | AB1: Valor por Pip
D2: ESTRATEGIA DE RIESGO - ANTIMARTINGALA DOBLE | L2: Resultados | AA2: 0.01 | AB2: 0.1
M3: Balance | AA3: 0.02 | AB3: 0.2
D4: Balance Inicial | F4: 1000 | I4: Porcentaje Aciertos | J4: 0.6 | L4: 0 cons. (lote fijo) | M4: =P13 -> 1136 | AA4: 0.04 | AB4: 0.4
D5: Lotes Iniciales | F5: 0.01 | I5: Ratio Beneficio / Riesgo | J5: 2 | L5: ="Dob. "&E11&" cons" -> Dob. 5 cons | M5: =G13 -> 1542 | AA5: 0.08 | AB5: 0.8
D6: Pips Stop Loss | F6: 20 | I6: Gestión Monetaria | J6: 1 | L6: ="Dob. "&H11&" cons" -> Dob. 7 cons | M6: =J13 -> 1604 | AA6: 0.16 | AB6: 1.6
D7: Operaciones | F7: 100 | I7: Riesgo Int Compuestos | J7: 0.01 | L7: ="Dob. "&K11&" cons" -> Dob. 9 cons | M7: =M13 -> 1604 | AA7: 0.32 | AB7: 3.2
N8: MIRA EL VÍDEO AQUÍ: | AA8: 0.64 | AB8: 6.4
E9: =(J4*J5)-((1-J4)*1) -> 0.8 | F9: ESPERANZA MATEMÁTICA | H9: =IF(E9>0,"POSITIVA","NEGATIVA") -> POSITIVA | N9: https://www.youtube.com/watch?v=SfSZ0Q373Ac | AA9: 1.28 | AB9: 12.8
AA10: 2.56 | AB10: 25.6
E11: 5 | H11: 7 | K11: 9 | N11: 0 Consecutivas (lote fijo) | Q11: Int. Compuestos | S11: Cálculos para Ajuste Balance | AA11: 5.12 | AB11: 51.2
B12: N° | C12: Aleatorio | D12: SL/TP | E12: Lotes | F12: Result. | G12: Balance | H12: Lotes | I12: Result. | J12: Balance | K12: Lotes | L12: Result. | M12: Balance | N12: Lotes | O12: Result. | P12: Balance | Q12: Rdo | R12: Balance | S12: =+E11 -> 5 | T12: =+S12 -> 5 | U12: =+H11 -> 7 | V12: =+U12 -> 7 | W12: =+K11 -> 9 | X12: =+W12 -> 9
B13: Operación | C13: =SUM(C14:C113)/COUNT(C14:C113) -> 0.56 | E13: =SUM(E14:OFFSET(E14,$F$7-1,0)) -> 2.99 | F13: =SUM(F14:OFFSET(F14,$F$7-1,0)) -> 542 | G13: =OFFSET(G14,$F$7-1,0) -> 1542 | H13: =SUM(H14:OFFSET(H14,$F$7-1,0)) -> 5.47 | I13: =SUM(I14:OFFSET(I14,$F$7-1,0)) -> 604 | J13: =OFFSET(J14,$F$7-1,0) -> 1604 | K13: =SUM(K14:OFFSET(K14,$F$7-1,0)) -> 5.47 | L13: =SUM(L14:OFFSET(L14,$F$7-1,0)) -> 604 | M13: =OFFSET(M14,$F$7-1,0) -> 1604 | N13: =SUM(N14:OFFSET(N14,$F$7-1,0)) -> 1 | O13: =SUM(O14:OFFSET(O14,$F$7-1,0)) -> 136 | P13: =OFFSET(P14,$F$7-1,0) -> 1136 | Q13: =SUM(Q14:OFFSET(Q14,$F$7-1,0)) -> 947.8619809 | R13: =OFFSET(R14,$F$7-1,0) -> 1947.861981 | T13: =+LOOKUP(E11,$AA$14:$AA$29,$AB$14:$AB$29) -> 16 | V13: =+LOOKUP(H11,$AA$14:$AA$29,$AB$14:$AB$29) -> 64 | X13: =+LOOKUP(K11,$AA$14:$AA$29,$AB$14:$AB$29) -> 256
B14: 1 | C14: =IF(RAND()<$J$4,1,0) -> 0 | D14: =IF(C14=0,"SL","TP") -> SL | E14: =F5 -> 0.01 | F14: =IF(C14=1,$F$6*$J$5*VLOOKUP(E14,$AA$2:$AB$13,2),($F$6*VLOOKUP(E14,$AA$2:$AB$13,2))*-1) -> -2 | G14: =+$F$4+F14 -> 998 | H14: =+V14 -> 0.01 | I14: =IF(C14=1,$F$6*$J$5*VLOOKUP(H14,$AA$2:$AB$13,2),($F$6*VLOOKUP(H14,$AA$2:$AB$13,2))*-1) -> -2 | J14: =+$F$4+I14 -> 998 | K14: =+X14 -> 0.01 | L14: =IF(C14=1,$F$6*$J$5*VLOOKUP(K14,$AA$2:$AB$13,2),($F$6*VLOOKUP(K14,$AA$2:$AB$13,2))*-1) -> -2 | M14: =+$F$4+L14 -> 998 | N14: =F5 -> 0.01 | O14: =IF(C14=1,$F$6*$J$5*VLOOKUP(N14,$AA$2:$AB$13,2),($F$6*VLOOKUP(N14,$AA$2:$AB$13,2))*-1) -> -2 | P14: =+$F$4+O14 -> 998 | Q14: =+$F$4*$J$7*IF(C14=0,-1,$J$5) -> -10 | R14: =+$F$4+Q14 -> 990 | S14: 1 | T14: =+$F$5 -> 0.01 | U14: 1 | V14: =+$F$5 -> 0.01 | W14: 1 | X14: =+$F$5 -> 0.01 | AA14: 1 | AB14: 1
B15: 2 | C15: =IF(RAND()<$J$4,1,0) -> 0 | D15: =IF(C15=0,"SL","TP") -> SL | E15: =MAX($F$5,IF(T15=$F$5,ROUNDDOWN(T15*(1+((S15-1)*$J$6)),2),ROUNDDOWN(E14*(T15/T14),2))) -> 0.01 | F15: -2 | G15: =+G14+F15 -> 996 | H15: =MAX($F$5,IF(V15=$F$5,ROUNDDOWN(V15*(1+((U15-1)*$J$6)),2),ROUNDDOWN(H14*(V15/V14),2))) -> 0.01 | I15: =IF(C15=1,$F$6*$J$5*VLOOKUP(H15,$AA$2:$AB$13,2),($F$6*VLOOKUP(H15,$AA$2:$AB$13,2))*-1) -> -2 | J15: =+J14+I15 -> 996 | K15: =MAX($F$5,IF(X15=$F$5,ROUNDDOWN(X15*(1+((W15-1)*$J$6)),2),ROUNDDOWN(K14*(X15/X14),2))) -> 0.01 | L15: -2 | M15: =+M14+L15 -> 996 | N15: =N14 -> 0.01 | O15: -2 | P15: =P14+O15 -> 996 | Q15: =+R14*$J$7*IF(C15=0,-1,$J$5) -> -9.9 | R15: =+R14+Q15 -> 980.1 | S15: =IF(G14<$F$4,1,ROUNDDOWN(G14/$F$4,1)) -> 1 | T15: =IF(T14=$F$5*$T$13,$F$5,IF($C14=1,T14*2,$F$5)) -> 0.01 | U15: =IF(J14<$F$4,1,ROUNDDOWN(J14/$F$4,1)) -> 1 | V15: =IF(V14=$F$5*$V$13,$F$5,IF($C14=1,V14*2,$F$5)) -> 0.01 | W15: =IF(M14<$F$4,1,ROUNDDOWN(M14/$F$4,1)) -> 1 | X15: =IF(X14=$F$5*$X$13,$F$5,IF($C14=1,X14*2,$F$5)) -> 0.01 | AA15: =+AA14+1 -> 2 | AB15: =+AB14*2 -> 2
B16: 3 | C16: =IF(RAND()<$J$4,1,0) -> 0 | D16: =IF(C16=0,"SL","TP") -> SL | E16: 0.01 | F16: -2 | G16: 994 | H16: 0.01 | I16: =IF(C16=1,$F$6*$J$5*VLOOKUP(H16,$AA$2:$AB$13,2),($F$6*VLOOKUP(H16,$AA$2:$AB$13,2))*-1) -> -2 | J16: =+J15+I16 -> 994 | K16: 0.01 | L16: -2 | M16: =+M15+L16 -> 994 | N16: =N15 -> 0.01 | O16: -2 | P16: =P15+O16 -> 994 | Q16: -9.801 | R16: =+R15+Q16 -> 970.299 | S16: 1 | T16: 0.01 | U16: 1 | V16: 0.01 | W16: 1 | X16: 0.01 | AA16: =+AA15+1 -> 3 | AB16: =+AB15*2 -> 4
B17: 4 | C17: =IF(RAND()<$J$4,1,0) -> 1 | D17: =IF(C17=0,"SL","TP") -> TP | E17: 0.01 | F17: 4 | G17: 998 | H17: 0.01 | I17: 4 | J17: 998 | K17: 0.01 | L17: 4 | M17: 998 | N17: 0.01 | O17: 4 | P17: 998 | Q17: 19.40598 | R17: 989.70498 | S17: 1 | T17: 0.01 | U17: 1 | V17: 0.01 | W17: 1 | X17: 0.01 | AA17: 4 | AB17: =+AB16*2 -> 8
B18: 5 | C18: 0 | D18: SL | E18: 0.02 | F18: -4 | G18: 994 | H18: 0.02 | I18: -4 | J18: 994 | K18: 0.02 | L18: -4 | M18: 994 | N18: 0.01 | O18: -2 | P18: 996 | Q18: -9.8970498 | R18: 979.8079302 | S18: 1 | T18: 0.02 | U18: 1 | V18: 0.02 | W18: 1 | X18: 0.02 | AA18: 5 | AB18: =+AB17*2 -> 16
B19: 6 | C19: 1 | D19: TP | E19: 0.01 | F19: 4 | G19: 998 | H19: 0.01 | I19: 4 | J19: 998 | K19: 0.01 | L19: 4 | M19: 998 | N19: 0.01 | O19: 4 | P19: 1000 | Q19: 19.5961586 | R19: 999.4040888 | S19: 1 | T19: 0.01 | U19: 1 | V19: 0.01 | W19: 1 | X19: 0.01 | AA19: 6 | AB19: =+AB18*2 -> 32
B20: 7 | C20: =IF(RAND()<$J$4,1,0) -> 1 | D20: TP | E20: 0.02 | F20: 8 | G20: 1006 | H20: 0.02 | I20: 8 | J20: 1006 | K20: 0.02 | L20: 8 | M20: 1006 | N20: 0.01 | O20: 4 | P20: 1004 | Q20: 19.98808178 | R20: 1019.392171 | S20: 1 | T20: 0.02 | U20: 1 | V20: 0.02 | W20: 1 | X20: 0.02 | AA20: 7 | AB20: 64
B21: 8 | C21: 1 | D21: TP | E21: 0.04 | F21: 16 | G21: 1022 | H21: 0.04 | I21: 16 | J21: 1022 | K21: =MAX($F$5,IF(X21=$F$5,ROUNDDOWN(X21*(1+((W21-1)*$J$6)),2),ROUNDDOWN(K20*(X21/X20),2))) -> 0.04 | L21: 16 | M21: 1022 | N21: 0.01 | O21: 4 | P21: 1008 | Q21: 20.38784341 | R21: 1039.780014 | S21: 1 | T21: 0.04 | U21: 1 | V21: 0.04 | W21: 1 | X21: 0.04 | AA21: 8 | AB21: 128
B22: 9 | C22: 1 | D22: TP | E22: 0.08 | F22: 32 | G22: 1054 | H22: 0.08 | I22: 32 | J22: 1054 | K22: 0.08 | L22: 32 | M22: 1054 | N22: 0.01 | O22: 4 | P22: 1012 | Q22: 20.79560028 | R22: 1060.575614 | S22: 1 | T22: 0.08 | U22: 1 | V22: 0.08 | W22: 1 | X22: 0.08 | AA22: 9 | AB22: 256
B23: 10 | C23: 1 | D23: TP | E23: 0.16 | F23: 64 | G23: 1118 | H23: 0.16 | I23: 64 | J23: 1118 | K23: 0.16 | L23: 64 | M23: 1118 | N23: 0.01 | O23: 4 | P23: 1016 | Q23: 21.21151229 | R23: 1081.787127 | S23: 1 | T23: 0.16 | U23: 1 | V23: 0.16 | W23: 1 | X23: 0.16 | AA23: 10 | AB23: 512
B24: 11 | C24: 1 | D24: TP | E24: 0.01 | F24: 4 | G24: 1122 | H24: 0.32 | I24: 128 | J24: 1246 | K24: 0.32 | L24: 128 | M24: 1246 | N24: 0.01 | O24: 4 | P24: 1020 | Q24: 21.63574253 | R24: 1103.422869 | S24: 1.1 | T24: 0.01 | U24: 1.1 | V24: 0.32 | W24: 1.1 | X24: 0.32 | AA24: 11 | AB24: 1024
B25: 12 | C25: 0 | D25: SL | E25: 0.02 | F25: -4 | G25: 1118 | H25: 0.64 | I25: -128 | J25: 1118 | K25: 0.64 | L25: -128 | M25: 1118 | N25: 0.01 | O25: -2 | P25: 1018 | Q25: -11.03422869 | R25: 1092.38864 | S25: 1.1 | T25: 0.02 | U25: 1.2 | V25: 0.64 | W25: 1.2 | X25: 0.64 | AA25: 12 | AB25: 2048
B26: 13 | C26: 1 | D26: TP | E26: 0.01 | F26: 4 | G26: 1122 | H26: 0.01 | I26: 4 | J26: 1122 | K26: 0.01 | L26: 4 | M26: 1122 | N26: 0.01 | O26: 4 | P26: 1022 | Q26: 21.84777281 | R26: 1114.236413 | S26: 1.1 | T26: 0.01 | U26: 1.1 | V26: 0.01 | W26: 1.1 | X26: 0.01 | AA26: 13 | AB26: 4096
B27: 14 | C27: 1 | D27: TP | E27: 0.02 | F27: 8 | G27: 1130 | H27: 0.02 | I27: 8 | J27: 1130 | K27: 0.02 | L27: 8 | M27: 1130 | N27: 0.01 | O27: 4 | P27: 1026 | Q27: 22.28472826 | R27: 1136.521141 | S27: 1.1 | T27: 0.02 | U27: 1.1 | V27: 0.02 | W27: 1.1 | X27: 0.02 | AA27: 14 | AB27: 8192
B28: 15 | C28: 1 | D28: TP | E28: 0.04 | F28: 16 | G28: 1146 | H28: 0.04 | I28: 16 | J28: 1146 | K28: 0.04 | L28: 16 | M28: 1146 | N28: 0.01 | O28: 4 | P28: 1030 | Q28: 22.73042283 | R28: 1159.251564 | S28: 1.1 | T28: 0.04 | U28: 1.1 | V28: 0.04 | W28: 1.1 | X28: 0.04 | AA28: 15 | AB28: 16384
B29: 16 | C29: 0 | D29: SL | E29: 0.08 | F29: -16 | G29: 1130 | H29: 0.08 | I29: -16 | J29: 1130 | K29: 0.08 | L29: -16 | M29: 1130 | N29: 0.01 | O29: -2 | P29: 1028 | Q29: -11.59251564 | R29: 1147.659049 | S29: 1.1 | T29: 0.08 | U29: 1.1 | V29: 0.08 | W29: 1.1 | X29: 0.08 | AA29: 16 | AB29: 32768
B30: 17 | C30: 0 | D30: SL | E30: 0.01 | F30: -2 | G30: 1128 | H30: 0.01 | I30: -2 | J30: 1128 | K30: 0.01 | L30: -2 | M30: 1128 | N30: 0.01 | O30: -2 | P30: 1026 | Q30: -11.47659049 | R30: 1136.182458 | S30: 1.1 | T30: 0.01 | U30: 1.1 | V30: 0.01 | W30: 1.1 | X30: 0.01
B31: 18 | C31: 0 | D31: SL | E31: 0.01 | F31: -2 | G31: 1126 | H31: 0.01 | I31: -2 | J31: 1126 | K31: 0.01 | L31: -2 | M31: 1126 | N31: 0.01 | O31: -2 | P31: 1024 | Q31: -11.36182458 | R31: 1124.820634 | S31: 1.1 | T31: 0.01 | U31: 1.1 | V31: 0.01 | W31: 1.1 | X31: 0.01
B32: 19 | C32: 1 | D32: TP | E32: 0.01 | F32: 4 | G32: 1130 | H32: 0.01 | I32: 4 | J32: 1130 | K32: 0.01 | L32: 4 | M32: 1130 | N32: 0.01 | O32: 4 | P32: 1028 | Q32: 22.49641267 | R32: 1147.317046 | S32: 1.1 | T32: 0.01 | U32: 1.1 | V32: 0.01 | W32: 1.1 | X32: 0.01 | AA32: =+E11 -> 5 | AB32: =COUNTIFS(T14:OFFSET(T14,$F$7,0),$F$5*T13,C14:OFFSET(C14,$F$7,0),1) -> 4
B33: 20 | C33: 0 | D33: SL | E33: 0.02 | F33: -4 | G33: 1126 | H33: 0.02 | I33: -4 | J33: 1126 | K33: 0.02 | L33: -4 | M33: 1126 | N33: 0.01 | O33: -2 | P33: 1026 | Q33: -11.47317046 | R33: 1135.843876 | S33: 1.1 | T33: 0.02 | U33: 1.1 | V33: 0.02 | W33: 1.1 | X33: 0.02 | AA33: =+H11 -> 7 | AB33: =COUNTIFS(V14:OFFSET(V14,$F$7,0),$F$5*V13,$C14:OFFSET($C14,$F$7,0),1) -> 0
B34: 21 | C34: 0 | D34: SL | E34: 0.01 | F34: -2 | G34: 1124 | H34: 0.01 | I34: -2 | J34: 1124 | K34: 0.01 | L34: -2 | M34: 1124 | N34: 0.01 | O34: -2 | P34: 1024 | Q34: -11.35843876 | R34: 1124.485437 | S34: 1.1 | T34: 0.01 | U34: 1.1 | V34: 0.01 | W34: 1.1 | X34: 0.01 | AA34: =+K11 -> 9 | AB34: =COUNTIFS(X14:OFFSET(X14,$F$7,0),$F$5*X13,$C14:OFFSET($C14,$F$7,0),1) -> 0
B35: 22 | C35: 0 | D35: SL | E35: 0.01 | F35: -2 | G35: 1122 | H35: 0.01 | I35: -2 | J35: 1122 | K35: 0.01 | L35: -2 | M35: 1122 | N35: 0.01 | O35: -2 | P35: 1022 | Q35: -11.24485437 | R35: 1113.240583 | S35: 1.1 | T35: 0.01 | U35: 1.1 | V35: 0.01 | W35: 1.1 | X35: 0.01
B36: 23 | C36: 1 | D36: TP | E36: 0.01 | F36: 4 | G36: 1126 | H36: 0.01 | I36: 4 | J36: 1126 | K36: 0.01 | L36: 4 | M36: 1126 | N36: 0.01 | O36: 4 | P36: 1026 | Q36: 22.26481165 | R36: 1135.505394 | S36: 1.1 | T36: 0.01 | U36: 1.1 | V36: 0.01 | W36: 1.1 | X36: 0.01
B37: 24 | C37: 1 | D37: TP | E37: 0.02 | F37: 8 | G37: 1134 | H37: 0.02 | I37: 8 | J37: 1134 | K37: 0.02 | L37: 8 | M37: 1134 | N37: 0.01 | O37: 4 | P37: 1030 | Q37: 22.71010789 | R37: 1158.215502 | S37: 1.1 | T37: 0.02 | U37: 1.1 | V37: 0.02 | W37: 1.1 | X37: 0.02
B38: 25 | C38: 1 | D38: TP | E38: 0.04 | F38: 16 | G38: 1150 | H38: 0.04 | I38: 16 | J38: 1150 | K38: 0.04 | L38: 16 | M38: 1150 | N38: 0.01 | O38: 4 | P38: 1034 | Q38: 23.16431004 | R38: 1181.379812 | S38: 1.1 | T38: 0.04 | U38: 1.1 | V38: 0.04 | W38: 1.1 | X38: 0.04
B39: 26 | C39: 0 | D39: SL | E39: 0.08 | F39: -16 | G39: 1134 | H39: 0.08 | I39: -16 | J39: 1134 | K39: 0.08 | L39: -16 | M39: 1134 | N39: 0.01 | O39: -2 | P39: 1032 | Q39: -11.81379812 | R39: 1169.566014 | S39: 1.1 | T39: 0.08 | U39: 1.1 | V39: 0.08 | W39: 1.1 | X39: 0.08
B40: 27 | C40: 1 | D40: TP | E40: 0.01 | F40: 4 | G40: 1138 | H40: 0.01 | I40: 4 | J40: 1138 | K40: 0.01 | L40: 4 | M40: 1138 | N40: 0.01 | O40: 4 | P40: 1036 | Q40: 23.39132028 | R40: 1192.957334 | S40: 1.1 | T40: 0.01 | U40: 1.1 | V40: 0.01 | W40: 1.1 | X40: 0.01
B41: 28 | C41: 1 | D41: TP | E41: 0.02 | F41: 8 | G41: 1146 | H41: 0.02 | I41: 8 | J41: 1146 | K41: 0.02 | L41: 8 | M41: 1146 | N41: 0.01 | O41: 4 | P41: 1040 | Q41: 23.85914669 | R41: 1216.816481 | S41: 1.1 | T41: 0.02 | U41: 1.1 | V41: 0.02 | W41: 1.1 | X41: 0.02
B42: 29 | C42: 0 | D42: SL | E42: 0.04 | F42: -8 | G42: 1138 | H42: 0.04 | I42: -8 | J42: 1138 | K42: 0.04 | L42: -8 | M42: 1138 | N42: 0.01 | O42: -2 | P42: 1038 | Q42: -12.16816481 | R42: 1204.648316 | S42: 1.1 | T42: 0.04 | U42: 1.1 | V42: 0.04 | W42: 1.1 | X42: 0.04
B43: 30 | C43: 0 | D43: SL | E43: 0.01 | F43: -2 | G43: 1136 | H43: 0.01 | I43: -2 | J43: 1136 | K43: 0.01 | L43: -2 | M43: 1136 | N43: 0.01 | O43: -2 | P43: 1036 | Q43: -12.04648316 | R43: 1192.601833 | S43: 1.1 | T43: 0.01 | U43: 1.1 | V43: 0.01 | W43: 1.1 | X43: 0.01
B44: 31 | C44: 0 | D44: SL | E44: 0.01 | F44: -2 | G44: 1134 | H44: 0.01 | I44: -2 | J44: 1134 | K44: 0.01 | L44: -2 | M44: 1134 | N44: 0.01 | O44: -2 | P44: 1034 | Q44: -11.92601833 | R44: 1180.675815 | S44: 1.1 | T44: 0.01 | U44: 1.1 | V44: 0.01 | W44: 1.1 | X44: 0.01
B45: 32 | C45: 1 | D45: TP | E45: 0.01 | F45: 4 | G45: 1138 | H45: 0.01 | I45: 4 | J45: 1138 | K45: 0.01 | L45: 4 | M45: 1138 | N45: 0.01 | O45: 4 | P45: 1038 | Q45: 23.6135163 | R45: 1204.289331 | S45: 1.1 | T45: 0.01 | U45: 1.1 | V45: 0.01 | W45: 1.1 | X45: 0.01
B46: 33 | C46: 1 | D46: TP | E46: 0.02 | F46: =IF(C46=1,$F$6*$J$5*VLOOKUP(E46,$AA$2:$AB$13,2),($F$6*VLOOKUP(E46,$AA$2:$AB$13,2))*-1) -> 8 | G46: 1146 | H46: 0.02 | I46: 8 | J46: 1146 | K46: 0.02 | L46: =IF(C46=1,$F$6*$J$5*VLOOKUP(K46,$AA$2:$AB$13,2),($F$6*VLOOKUP(K46,$AA$2:$AB$13,2))*-1) -> 8 | M46: 1146 | N46: 0.01 | O46: =IF(C46=1,$F$6*$J$5*VLOOKUP(N46,$AA$2:$AB$13,2),($F$6*VLOOKUP(N46,$AA$2:$AB$13,2))*-1) -> 4 | P46: 1042 | Q46: 24.08578662 | R46: 1228.375118 | S46: 1.1 | T46: 0.02 | U46: 1.1 | V46: 0.02 | W46: 1.1 | X46: 0.02
B47: 34 | C47: 1 | D47: TP | E47: =MAX($F$5,IF(T47=$F$5,ROUNDDOWN(T47*(1+((S47-1)*$J$6)),2),ROUNDDOWN(E46*(T47/T46),2))) -> 0.04 | F47: 16 | G47: 1162 | H47: =MAX($F$5,IF(V47=$F$5,ROUNDDOWN(V47*(1+((U47-1)*$J$6)),2),ROUNDDOWN(H46*(V47/V46),2))) -> 0.04 | I47: 16 | J47: 1162 | K47: =MAX($F$5,IF(X47=$F$5,ROUNDDOWN(X47*(1+((W47-1)*$J$6)),2),ROUNDDOWN(K46*(X47/X46),2))) -> 0.04 | L47: 16 | M47: 1162 | N47: 0.01 | O47: 4 | P47: 1046 | Q47: =+R46*$J$7*IF(C47=0,-1,$J$5) -> 24.56750235 | R47: 1252.94262 | S47: =IF(G46<$F$4,1,ROUNDDOWN(G46/$F$4,1)) -> 1.1 | T47: =IF(T46=$F$5*$T$13,$F$5,IF($C46=1,T46*2,$F$5)) -> 0.04 | U47: =IF(J46<$F$4,1,ROUNDDOWN(J46/$F$4,1)) -> 1.1 | V47: =IF(V46=$F$5*$V$13,$F$5,IF($C46=1,V46*2,$F$5)) -> 0.04 | W47: =IF(M46<$F$4,1,ROUNDDOWN(M46/$F$4,1)) -> 1.1 | X47: =IF(X46=$F$5*$X$13,$F$5,IF($C46=1,X46*2,$F$5)) -> 0.04
B48: 35 | C48: 1 | D48: TP | E48: 0.08 | F48: 32 | G48: 1194 | H48: 0.08 | I48: 32 | J48: 1194 | K48: 0.08 | L48: 32 | M48: 1194 | N48: 0.01 | O48: 4 | P48: 1050 | Q48: 25.0588524 | R48: 1278.001472 | S48: 1.1 | T48: 0.08 | U48: 1.1 | V48: 0.08 | W48: 1.1 | X48: 0.08
B49: 36 | C49: 1 | D49: TP | E49: 0.16 | F49: 64 | G49: 1258 | H49: 0.16 | I49: 64 | J49: 1258 | K49: 0.16 | L49: 64 | M49: 1258 | N49: 0.01 | O49: 4 | P49: 1054 | Q49: 25.56002945 | R49: 1303.561502 | S49: 1.1 | T49: 0.16 | U49: 1.1 | V49: 0.16 | W49: 1.1 | X49: 0.16
B50: 37 | C50: 0 | D50: SL | E50: 0.01 | F50: -2 | G50: 1256 | H50: 0.32 | I50: -64 | J50: 1194 | K50: 0.32 | L50: -64 | M50: 1194 | N50: 0.01 | O50: -2 | P50: 1052 | Q50: -13.03561502 | R50: 1290.525887 | S50: 1.2 | T50: 0.01 | U50: 1.2 | V50: 0.32 | W50: 1.2 | X50: 0.32
B51: 38 | C51: 0 | D51: SL | E51: 0.01 | F51: -2 | G51: 1254 | H51: 0.01 | I51: -2 | J51: 1192 | K51: 0.01 | L51: -2 | M51: 1192 | N51: 0.01 | O51: -2 | P51: 1050 | Q51: -12.90525887 | R51: 1277.620628 | S51: 1.2 | T51: 0.01 | U51: 1.1 | V51: 0.01 | W51: 1.1 | X51: 0.01
B52: 39 | C52: 0 | D52: SL | E52: 0.01 | F52: -2 | G52: 1252 | H52: 0.01 | I52: -2 | J52: 1190 | K52: 0.01 | L52: -2 | M52: 1190 | N52: 0.01 | O52: -2 | P52: 1048 | Q52: -12.77620628 | R52: 1264.844422 | S52: 1.2 | T52: 0.01 | U52: 1.1 | V52: 0.01 | W52: 1.1 | X52: 0.01
B53: 40 | C53: 1 | D53: TP | E53: 0.01 | F53: 4 | G53: 1256 | H53: 0.01 | I53: 4 | J53: 1194 | K53: 0.01 | L53: 4 | M53: 1194 | N53: 0.01 | O53: 4 | P53: 1052 | Q53: 25.29688843 | R53: 1290.14131 | S53: 1.2 | T53: 0.01 | U53: 1.1 | V53: 0.01 | W53: 1.1 | X53: 0.01
B54: 41 | C54: 1 | D54: TP | E54: 0.02 | F54: 8 | G54: 1264 | H54: 0.02 | I54: 8 | J54: 1202 | K54: 0.02 | L54: 8 | M54: 1202 | N54: 0.01 | O54: 4 | P54: 1056 | Q54: 25.8028262 | R54: 1315.944136 | S54: 1.2 | T54: 0.02 | U54: 1.1 | V54: 0.02 | W54: 1.1 | X54: 0.02
B55: 42 | C55: 1 | D55: TP | E55: 0.04 | F55: 16 | G55: 1280 | H55: 0.04 | I55: 16 | J55: 1218 | K55: 0.04 | L55: 16 | M55: 1218 | N55: 0.01 | O55: 4 | P55: 1060 | Q55: 26.31888273 | R55: 1342.263019 | S55: 1.2 | T55: 0.04 | U55: 1.2 | V55: 0.04 | W55: 1.2 | X55: 0.04
B56: 43 | C56: 0 | D56: SL | E56: 0.08 | F56: -16 | G56: 1264 | H56: 0.08 | I56: -16 | J56: 1202 | K56: 0.08 | L56: -16 | M56: 1202 | N56: 0.01 | O56: -2 | P56: 1058 | Q56: -13.42263019 | R56: 1328.840389 | S56: 1.2 | T56: 0.08 | U56: 1.2 | V56: 0.08 | W56: 1.2 | X56: 0.08
B57: 44 | C57: 1 | D57: TP | E57: 0.01 | F57: 4 | G57: 1268 | H57: 0.01 | I57: 4 | J57: 1206 | K57: 0.01 | L57: 4 | M57: 1206 | N57: 0.01 | O57: 4 | P57: 1062 | Q57: 26.57680778 | R57: 1355.417197 | S57: 1.2 | T57: 0.01 | U57: 1.2 | V57: 0.01 | W57: 1.2 | X57: 0.01
B58: 45 | C58: 1 | D58: TP | E58: 0.02 | F58: 8 | G58: 1276 | H58: 0.02 | I58: 8 | J58: 1214 | K58: 0.02 | L58: 8 | M58: 1214 | N58: 0.01 | O58: 4 | P58: 1066 | Q58: 27.10834393 | R58: 1382.525541 | S58: 1.2 | T58: 0.02 | U58: 1.2 | V58: 0.02 | W58: 1.2 | X58: 0.02
B59: 46 | C59: 1 | D59: TP | E59: 0.04 | F59: 16 | G59: 1292 | H59: 0.04 | I59: 16 | J59: 1230 | K59: 0.04 | L59: 16 | M59: 1230 | N59: 0.01 | O59: 4 | P59: 1070 | Q59: 27.65051081 | R59: 1410.176051 | S59: 1.2 | T59: 0.04 | U59: 1.2 | V59: 0.04 | W59: 1.2 | X59: 0.04
B60: 47 | C60: 0 | D60: SL | E60: 0.08 | F60: -16 | G60: 1276 | H60: 0.08 | I60: -16 | J60: 1214 | K60: 0.08 | L60: -16 | M60: 1214 | N60: 0.01 | O60: -2 | P60: 1068 | Q60: -14.10176051 | R60: 1396.074291 | S60: 1.2 | T60: 0.08 | U60: 1.2 | V60: 0.08 | W60: 1.2 | X60: 0.08
B61: 48 | C61: 0 | D61: SL | E61: 0.01 | F61: -2 | G61: 1274 | H61: 0.01 | I61: -2 | J61: 1212 | K61: 0.01 | L61: -2 | M61: 1212 | N61: 0.01 | O61: -2 | P61: 1066 | Q61: -13.96074291 | R61: 1382.113548 | S61: 1.2 | T61: 0.01 | U61: 1.2 | V61: 0.01 | W61: 1.2 | X61: 0.01
B62: 49 | C62: 0 | D62: SL | E62: 0.01 | F62: -2 | G62: 1272 | H62: 0.01 | I62: -2 | J62: 1210 | K62: 0.01 | L62: -2 | M62: 1210 | N62: 0.01 | O62: -2 | P62: 1064 | Q62: -13.82113548 | R62: 1368.292413 | S62: 1.2 | T62: 0.01 | U62: 1.2 | V62: 0.01 | W62: 1.2 | X62: 0.01
B63: 50 | C63: 1 | D63: TP | E63: 0.01 | F63: 4 | G63: 1276 | H63: 0.01 | I63: 4 | J63: 1214 | K63: 0.01 | L63: 4 | M63: 1214 | N63: 0.01 | O63: 4 | P63: 1068 | Q63: 27.36584825 | R63: 1395.658261 | S63: 1.2 | T63: 0.01 | U63: 1.2 | V63: 0.01 | W63: 1.2 | X63: 0.01
B64: 51 | C64: 1 | D64: TP | E64: 0.02 | F64: 8 | G64: 1284 | H64: 0.02 | I64: 8 | J64: 1222 | K64: 0.02 | L64: 8 | M64: 1222 | N64: 0.01 | O64: 4 | P64: 1072 | Q64: 27.91316522 | R64: 1423.571426 | S64: 1.2 | T64: 0.02 | U64: 1.2 | V64: 0.02 | W64: 1.2 | X64: 0.02
B65: 52 | C65: 0 | D65: SL | E65: 0.04 | F65: -8 | G65: 1276 | H65: 0.04 | I65: -8 | J65: 1214 | K65: 0.04 | L65: -8 | M65: 1214 | N65: 0.01 | O65: -2 | P65: 1070 | Q65: -14.23571426 | R65: 1409.335712 | S65: 1.2 | T65: 0.04 | U65: 1.2 | V65: 0.04 | W65: 1.2 | X65: 0.04
B66: 53 | C66: 1 | D66: TP | E66: 0.01 | F66: 4 | G66: 1280 | H66: 0.01 | I66: 4 | J66: 1218 | K66: 0.01 | L66: 4 | M66: 1218 | N66: 0.01 | O66: 4 | P66: 1074 | Q66: 28.18671424 | R66: 1437.522426 | S66: 1.2 | T66: 0.01 | U66: 1.2 | V66: 0.01 | W66: 1.2 | X66: 0.01
B67: 54 | C67: 0 | D67: SL | E67: 0.02 | F67: -4 | G67: 1276 | H67: 0.02 | I67: -4 | J67: 1214 | K67: 0.02 | L67: -4 | M67: 1214 | N67: 0.01 | O67: -2 | P67: 1072 | Q67: -14.37522426 | R67: 1423.147202 | S67: 1.2 | T67: 0.02 | U67: 1.2 | V67: 0.02 | W67: 1.2 | X67: 0.02
B68: 55 | C68: 1 | D68: TP | E68: 0.01 | F68: 4 | G68: 1280 | H68: 0.01 | I68: 4 | J68: 1218 | K68: 0.01 | L68: 4 | M68: 1218 | N68: 0.01 | O68: 4 | P68: 1076 | Q68: 28.46294403 | R68: 1451.610146 | S68: 1.2 | T68: 0.01 | U68: 1.2 | V68: 0.01 | W68: 1.2 | X68: 0.01
B69: 56 | C69: 0 | D69: SL | E69: 0.02 | F69: -4 | G69: 1276 | H69: 0.02 | I69: -4 | J69: 1214 | K69: 0.02 | L69: -4 | M69: 1214 | N69: 0.01 | O69: -2 | P69: 1074 | Q69: -14.51610146 | R69: 1437.094044 | S69: 1.2 | T69: 0.02 | U69: 1.2 | V69: 0.02 | W69: 1.2 | X69: 0.02
B70: 57 | C70: 0 | D70: SL | E70: 0.01 | F70: -2 | G70: 1274 | H70: 0.01 | I70: -2 | J70: 1212 | K70: 0.01 | L70: -2 | M70: 1212 | N70: 0.01 | O70: -2 | P70: 1072 | Q70: -14.37094044 | R70: 1422.723104 | S70: 1.2 | T70: 0.01 | U70: 1.2 | V70: 0.01 | W70: 1.2 | X70: 0.01
B71: 58 | C71: 0 | D71: SL | E71: 0.01 | F71: -2 | G71: 1272 | H71: 0.01 | I71: -2 | J71: 1210 | K71: 0.01 | L71: -2 | M71: 1210 | N71: 0.01 | O71: -2 | P71: 1070 | Q71: -14.22723104 | R71: 1408.495873 | S71: 1.2 | T71: 0.01 | U71: 1.2 | V71: 0.01 | W71: 1.2 | X71: 0.01
B72: 59 | C72: 1 | D72: TP | E72: 0.01 | F72: 4 | G72: 1276 | H72: 0.01 | I72: 4 | J72: 1214 | K72: 0.01 | L72: 4 | M72: 1214 | N72: 0.01 | O72: 4 | P72: 1074 | Q72: 28.16991746 | R72: 1436.66579 | S72: 1.2 | T72: 0.01 | U72: 1.2 | V72: 0.01 | W72: 1.2 | X72: 0.01
B73: 60 | C73: 0 | D73: SL | E73: 0.02 | F73: -4 | G73: 1272 | H73: 0.02 | I73: -4 | J73: 1210 | K73: 0.02 | L73: -4 | M73: 1210 | N73: 0.01 | O73: -2 | P73: 1072 | Q73: -14.3666579 | R73: 1422.299132 | S73: 1.2 | T73: 0.02 | U73: 1.2 | V73: 0.02 | W73: 1.2 | X73: 0.02
B74: 61 | C74: 1 | D74: TP | E74: 0.01 | F74: 4 | G74: 1276 | H74: 0.01 | I74: 4 | J74: 1214 | K74: 0.01 | L74: 4 | M74: 1214 | N74: 0.01 | O74: 4 | P74: 1076 | Q74: 28.44598265 | R74: 1450.745115 | S74: 1.2 | T74: 0.01 | U74: 1.2 | V74: 0.01 | W74: 1.2 | X74: 0.01
B75: 62 | C75: 0 | D75: SL | E75: 0.02 | F75: -4 | G75: 1272 | H75: 0.02 | I75: -4 | J75: 1210 | K75: 0.02 | L75: -4 | M75: 1210 | N75: 0.01 | O75: -2 | P75: 1074 | Q75: -14.50745115 | R75: 1436.237664 | S75: 1.2 | T75: 0.02 | U75: 1.2 | V75: 0.02 | W75: 1.2 | X75: 0.02
B76: 63 | C76: 0 | D76: SL | E76: 0.01 | F76: -2 | G76: 1270 | H76: 0.01 | I76: -2 | J76: 1208 | K76: 0.01 | L76: -2 | M76: 1208 | N76: 0.01 | O76: -2 | P76: 1072 | Q76: -14.36237664 | R76: 1421.875287 | S76: 1.2 | T76: 0.01 | U76: 1.2 | V76: 0.01 | W76: 1.2 | X76: 0.01
B77: 64 | C77: 1 | D77: TP | E77: 0.01 | F77: 4 | G77: 1274 | H77: 0.01 | I77: 4 | J77: 1212 | K77: 0.01 | L77: 4 | M77: 1212 | N77: =N76 -> 0.01 | O77: 4 | P77: 1076 | Q77: 28.43750574 | R77: 1450.312793 | S77: 1.2 | T77: 0.01 | U77: 1.2 | V77: 0.01 | W77: 1.2 | X77: 0.01
B78: 65 | C78: 0 | D78: SL | E78: 0.02 | F78: =IF(C78=1,$F$6*$J$5*VLOOKUP(E78,$AA$2:$AB$13,2),($F$6*VLOOKUP(E78,$AA$2:$AB$13,2))*-1) -> -4 | G78: 1270 | H78: 0.02 | I78: -4 | J78: 1208 | K78: 0.02 | L78: =IF(C78=1,$F$6*$J$5*VLOOKUP(K78,$AA$2:$AB$13,2),($F$6*VLOOKUP(K78,$AA$2:$AB$13,2))*-1) -> -4 | M78: 1208 | N78: 0.01 | O78: =IF(C78=1,$F$6*$J$5*VLOOKUP(N78,$AA$2:$AB$13,2),($F$6*VLOOKUP(N78,$AA$2:$AB$13,2))*-1) -> -2 | P78: 1074 | Q78: -14.50312793 | R78: 1435.809665 | S78: 1.2 | T78: 0.02 | U78: 1.2 | V78: 0.02 | W78: 1.2 | X78: 0.02
B79: 66 | C79: 0 | D79: SL | E79: =MAX($F$5,IF(T79=$F$5,ROUNDDOWN(T79*(1+((S79-1)*$J$6)),2),ROUNDDOWN(E78*(T79/T78),2))) -> 0.01 | F79: -2 | G79: =+G78+F79 -> 1268 | H79: =MAX($F$5,IF(V79=$F$5,ROUNDDOWN(V79*(1+((U79-1)*$J$6)),2),ROUNDDOWN(H78*(V79/V78),2))) -> 0.01 | I79: =IF(C79=1,$F$6*$J$5*VLOOKUP(H79,$AA$2:$AB$13,2),($F$6*VLOOKUP(H79,$AA$2:$AB$13,2))*-1) -> -2 | J79: 1206 | K79: =MAX($F$5,IF(X79=$F$5,ROUNDDOWN(X79*(1+((W79-1)*$J$6)),2),ROUNDDOWN(K78*(X79/X78),2))) -> 0.01 | L79: -2 | M79: 1206 | N79: 0.01 | O79: -2 | P79: 1072 | Q79: =+R78*$J$7*IF(C79=0,-1,$J$5) -> -14.35809665 | R79: 1421.451568 | S79: =IF(G78<$F$4,1,ROUNDDOWN(G78/$F$4,1)) -> 1.2 | T79: =IF(T78=$F$5*$T$13,$F$5,IF($C78=1,T78*2,$F$5)) -> 0.01 | U79: =IF(J78<$F$4,1,ROUNDDOWN(J78/$F$4,1)) -> 1.2 | V79: =IF(V78=$F$5*$V$13,$F$5,IF($C78=1,V78*2,$F$5)) -> 0.01 | W79: =IF(M78<$F$4,1,ROUNDDOWN(M78/$F$4,1)) -> 1.2 | X79: =IF(X78=$F$5*$X$13,$F$5,IF($C78=1,X78*2,$F$5)) -> 0.01
B80: 67 | C80: =IF(RAND()<$J$4,1,0) -> 1 | D80: TP | E80: 0.01 | F80: 4 | G80: 1272 | H80: 0.01 | I80: 4 | J80: =+J79+I80 -> 1210 | K80: 0.01 | L80: 4 | M80: =+M79+L80 -> 1210 | N80: =N79 -> 0.01 | O80: 4 | P80: =P79+O80 -> 1076 | Q80: 28.42903137 | R80: =+R79+Q80 -> 1449.8806 | S80: 1.2 | T80: 0.01 | U80: 1.2 | V80: 0.01 | W80: 1.2 | X80: 0.01
B81: 68 | C81: 1 | D81: =IF(C81=0,"SL","TP") -> TP | E81: 0.02 | F81: 8 | G81: 1280 | H81: 0.02 | I81: 8 | J81: 1218 | K81: 0.02 | L81: 8 | M81: 1218 | N81: 0.01 | O81: 4 | P81: 1080 | Q81: 28.997612 | R81: 1478.878212 | S81: 1.2 | T81: 0.02 | U81: 1.2 | V81: 0.02 | W81: 1.2 | X81: 0.02
B82: 69 | C82: 1 | D82: TP | E82: 0.04 | F82: 16 | G82: 1296 | H82: 0.04 | I82: 16 | J82: 1234 | K82: 0.04 | L82: 16 | M82: 1234 | N82: 0.01 | O82: 4 | P82: 1084 | Q82: 29.57756424 | R82: 1508.455776 | S82: 1.2 | T82: 0.04 | U82: 1.2 | V82: 0.04 | W82: 1.2 | X82: 0.04
B83: 70 | C83: 1 | D83: TP | E83: 0.08 | F83: 32 | G83: 1328 | H83: 0.08 | I83: 32 | J83: 1266 | K83: 0.08 | L83: 32 | M83: 1266 | N83: 0.01 | O83: 4 | P83: 1088 | Q83: 30.16911552 | R83: 1538.624892 | S83: 1.2 | T83: 0.08 | U83: 1.2 | V83: 0.08 | W83: 1.2 | X83: 0.08
B84: 71 | C84: 0 | D84: SL | E84: 0.16 | F84: -32 | G84: 1296 | H84: 0.16 | I84: -32 | J84: 1234 | K84: 0.16 | L84: -32 | M84: 1234 | N84: 0.01 | O84: -2 | P84: 1086 | Q84: -15.38624892 | R84: 1523.238643 | S84: 1.3 | T84: 0.16 | U84: 1.2 | V84: 0.16 | W84: 1.2 | X84: 0.16
B85: 72 | C85: 1 | D85: TP | E85: 0.01 | F85: 4 | G85: 1300 | H85: 0.01 | I85: 4 | J85: 1238 | K85: 0.01 | L85: 4 | M85: 1238 | N85: 0.01 | O85: 4 | P85: 1090 | Q85: 30.46477285 | R85: 1553.703415 | S85: 1.2 | T85: 0.01 | U85: 1.2 | V85: 0.01 | W85: 1.2 | X85: 0.01
B86: 73 | C86: 0 | D86: SL | E86: 0.02 | F86: -4 | G86: 1296 | H86: 0.02 | I86: -4 | J86: 1234 | K86: 0.02 | L86: -4 | M86: 1234 | N86: 0.01 | O86: -2 | P86: 1088 | Q86: -15.53703415 | R86: 1538.166381 | S86: 1.3 | T86: 0.02 | U86: 1.2 | V86: 0.02 | W86: 1.2 | X86: 0.02
B87: 74 | C87: 1 | D87: TP | E87: 0.01 | F87: 4 | G87: 1300 | H87: 0.01 | I87: 4 | J87: 1238 | K87: 0.01 | L87: 4 | M87: 1238 | N87: 0.01 | O87: 4 | P87: 1092 | Q87: 30.76332763 | R87: 1568.929709 | S87: 1.2 | T87: 0.01 | U87: 1.2 | V87: 0.01 | W87: 1.2 | X87: 0.01
B88: 75 | C88: 0 | D88: SL | E88: 0.02 | F88: -4 | G88: 1296 | H88: 0.02 | I88: -4 | J88: 1234 | K88: 0.02 | L88: -4 | M88: 1234 | N88: 0.01 | O88: -2 | P88: 1090 | Q88: -15.68929709 | R88: 1553.240412 | S88: 1.3 | T88: 0.02 | U88: 1.2 | V88: 0.02 | W88: 1.2 | X88: 0.02
B89: 76 | C89: 1 | D89: TP | E89: 0.01 | F89: 4 | G89: 1300 | H89: 0.01 | I89: 4 | J89: 1238 | K89: 0.01 | L89: 4 | M89: 1238 | N89: 0.01 | O89: 4 | P89: 1094 | Q89: 31.06480824 | R89: 1584.30522 | S89: 1.2 | T89: 0.01 | U89: 1.2 | V89: 0.01 | W89: 1.2 | X89: 0.01
B90: 77 | C90: 1 | D90: TP | E90: 0.02 | F90: 8 | G90: 1308 | H90: 0.02 | I90: 8 | J90: 1246 | K90: 0.02 | L90: 8 | M90: 1246 | N90: 0.01 | O90: 4 | P90: 1098 | Q90: 31.6861044 | R90: 1615.991324 | S90: 1.3 | T90: 0.02 | U90: 1.2 | V90: 0.02 | W90: 1.2 | X90: 0.02
B91: 78 | C91: 1 | D91: TP | E91: 0.04 | F91: 16 | G91: 1324 | H91: 0.04 | I91: 16 | J91: 1262 | K91: 0.04 | L91: 16 | M91: 1262 | N91: 0.01 | O91: 4 | P91: 1102 | Q91: 32.31982649 | R91: 1648.311151 | S91: 1.3 | T91: 0.04 | U91: 1.2 | V91: 0.04 | W91: 1.2 | X91: 0.04
B92: 79 | C92: 1 | D92: TP | E92: 0.08 | F92: 32 | G92: 1356 | H92: 0.08 | I92: 32 | J92: 1294 | K92: 0.08 | L92: 32 | M92: 1294 | N92: 0.01 | O92: 4 | P92: 1106 | Q92: 32.96622302 | R92: 1681.277374 | S92: 1.3 | T92: 0.08 | U92: 1.2 | V92: 0.08 | W92: 1.2 | X92: 0.08
B93: 80 | C93: 1 | D93: TP | E93: 0.16 | F93: 64 | G93: 1420 | H93: 0.16 | I93: 64 | J93: 1358 | K93: 0.16 | L93: 64 | M93: 1358 | N93: 0.01 | O93: 4 | P93: 1110 | Q93: 33.62554748 | R93: 1714.902921 | S93: 1.3 | T93: 0.16 | U93: 1.2 | V93: 0.16 | W93: 1.2 | X93: 0.16
B94: 81 | C94: 1 | D94: TP | E94: 0.01 | F94: 4 | G94: 1424 | H94: 0.32 | I94: 128 | J94: 1486 | K94: 0.32 | L94: 128 | M94: 1486 | N94: 0.01 | O94: 4 | P94: 1114 | Q94: 34.29805843 | R94: 1749.20098 | S94: 1.4 | T94: 0.01 | U94: 1.3 | V94: 0.32 | W94: 1.3 | X94: 0.32
B95: 82 | C95: 0 | D95: SL | E95: 0.02 | F95: -4 | G95: 1420 | H95: 0.64 | I95: -128 | J95: 1358 | K95: 0.64 | L95: -128 | M95: 1358 | N95: 0.01 | O95: -2 | P95: 1112 | Q95: -17.4920098 | R95: 1731.70897 | S95: 1.4 | T95: 0.02 | U95: 1.4 | V95: 0.64 | W95: 1.4 | X95: 0.64
B96: 83 | C96: 0 | D96: SL | E96: 0.01 | F96: -2 | G96: 1418 | H96: 0.01 | I96: -2 | J96: 1356 | K96: 0.01 | L96: -2 | M96: 1356 | N96: 0.01 | O96: -2 | P96: 1110 | Q96: -17.3170897 | R96: 1714.39188 | S96: 1.4 | T96: 0.01 | U96: 1.3 | V96: 0.01 | W96: 1.3 | X96: 0.01
B97: 84 | C97: 0 | D97: SL | E97: 0.01 | F97: -2 | G97: 1416 | H97: 0.01 | I97: -2 | J97: 1354 | K97: 0.01 | L97: -2 | M97: 1354 | N97: 0.01 | O97: -2 | P97: 1108 | Q97: -17.1439188 | R97: 1697.247962 | S97: 1.4 | T97: 0.01 | U97: 1.3 | V97: 0.01 | W97: 1.3 | X97: 0.01
B98: 85 | C98: 1 | D98: TP | E98: 0.01 | F98: 4 | G98: 1420 | H98: 0.01 | I98: 4 | J98: 1358 | K98: 0.01 | L98: 4 | M98: 1358 | N98: 0.01 | O98: 4 | P98: 1112 | Q98: 33.94495923 | R98: 1731.192921 | S98: 1.4 | T98: 0.01 | U98: 1.3 | V98: 0.01 | W98: 1.3 | X98: 0.01
B99: 86 | C99: 0 | D99: SL | E99: 0.02 | F99: -4 | G99: 1416 | H99: 0.02 | I99: -4 | J99: 1354 | K99: 0.02 | L99: -4 | M99: 1354 | N99: 0.01 | O99: -2 | P99: 1110 | Q99: -17.31192921 | R99: 1713.880992 | S99: 1.4 | T99: 0.02 | U99: 1.3 | V99: 0.02 | W99: 1.3 | X99: 0.02
B100: 87 | C100: 1 | D100: TP | E100: 0.01 | F100: 4 | G100: 1420 | H100: 0.01 | I100: 4 | J100: 1358 | K100: 0.01 | L100: 4 | M100: 1358 | N100: 0.01 | O100: 4 | P100: 1114 | Q100: 34.27761983 | R100: 1748.158611 | S100: 1.4 | T100: 0.01 | U100: 1.3 | V100: 0.01 | W100: 1.3 | X100: 0.01
B101: 88 | C101: 1 | D101: TP | E101: 0.02 | F101: 8 | G101: 1428 | H101: 0.02 | I101: 8 | J101: 1366 | K101: 0.02 | L101: 8 | M101: 1366 | N101: 0.01 | O101: 4 | P101: 1118 | Q101: 34.96317223 | R101: 1783.121784 | S101: 1.4 | T101: 0.02 | U101: 1.3 | V101: 0.02 | W101: 1.3 | X101: 0.02
B102: 89 | C102: 0 | D102: SL | E102: 0.04 | F102: -8 | G102: 1420 | H102: 0.04 | I102: -8 | J102: 1358 | K102: 0.04 | L102: -8 | M102: 1358 | N102: 0.01 | O102: -2 | P102: 1116 | Q102: -17.83121784 | R102: 1765.290566 | S102: 1.4 | T102: 0.04 | U102: 1.3 | V102: 0.04 | W102: 1.3 | X102: 0.04
B103: 90 | C103: 0 | D103: SL | E103: 0.01 | F103: -2 | G103: 1418 | H103: 0.01 | I103: -2 | J103: 1356 | K103: 0.01 | L103: -2 | M103: 1356 | N103: 0.01 | O103: -2 | P103: 1114 | Q103: -17.65290566 | R103: 1747.63766 | S103: 1.4 | T103: 0.01 | U103: 1.3 | V103: 0.01 | W103: 1.3 | X103: 0.01
B104: 91 | C104: 1 | D104: TP | E104: 0.01 | F104: 4 | G104: 1422 | H104: 0.01 | I104: 4 | J104: 1360 | K104: 0.01 | L104: 4 | M104: 1360 | N104: 0.01 | O104: 4 | P104: 1118 | Q104: 34.9527532 | R104: 1782.590413 | S104: 1.4 | T104: 0.01 | U104: 1.3 | V104: 0.01 | W104: 1.3 | X104: 0.01
B105: 92 | C105: 0 | D105: SL | E105: 0.02 | F105: -4 | G105: 1418 | H105: 0.02 | I105: -4 | J105: 1356 | K105: 0.02 | L105: -4 | M105: 1356 | N105: 0.01 | O105: -2 | P105: 1116 | Q105: -17.82590413 | R105: 1764.764509 | S105: 1.4 | T105: 0.02 | U105: 1.3 | V105: 0.02 | W105: 1.3 | X105: 0.02
B106: 93 | C106: 0 | D106: SL | E106: 0.01 | F106: -2 | G106: 1416 | H106: 0.01 | I106: -2 | J106: 1354 | K106: 0.01 | L106: -2 | M106: 1354 | N106: 0.01 | O106: -2 | P106: 1114 | Q106: -17.64764509 | R106: 1747.116864 | S106: 1.4 | T106: 0.01 | U106: 1.3 | V106: 0.01 | W106: 1.3 | X106: 0.01
B107: 94 | C107: 0 | D107: SL | E107: 0.01 | F107: -2 | G107: 1414 | H107: 0.01 | I107: -2 | J107: 1352 | K107: 0.01 | L107: -2 | M107: 1352 | N107: 0.01 | O107: -2 | P107: 1112 | Q107: -17.47116864 | R107: 1729.645696 | S107: 1.4 | T107: 0.01 | U107: 1.3 | V107: 0.01 | W107: 1.3 | X107: 0.01
B108: 95 | C108: 1 | D108: TP | E108: 0.01 | F108: 4 | G108: 1418 | H108: 0.01 | I108: 4 | J108: 1356 | K108: 0.01 | L108: 4 | M108: 1356 | N108: 0.01 | O108: 4 | P108: 1116 | Q108: 34.59291391 | R108: 1764.238609 | S108: 1.4 | T108: 0.01 | U108: 1.3 | V108: 0.01 | W108: 1.3 | X108: 0.01
B109: 96 | C109: 1 | D109: TP | E109: 0.02 | F109: 8 | G109: 1426 | H109: 0.02 | I109: 8 | J109: 1364 | K109: 0.02 | L109: 8 | M109: 1364 | N109: 0.01 | O109: 4 | P109: 1120 | Q109: 35.28477219 | R109: 1799.523382 | S109: 1.4 | T109: 0.02 | U109: 1.3 | V109: 0.02 | W109: 1.3 | X109: 0.02
B110: 97 | C110: 1 | D110: TP | E110: 0.04 | F110: =IF(C110=1,$F$6*$J$5*VLOOKUP(E110,$AA$2:$AB$13,2),($F$6*VLOOKUP(E110,$AA$2:$AB$13,2))*-1) -> 16 | G110: 1442 | H110: 0.04 | I110: 16 | J110: 1380 | K110: 0.04 | L110: =IF(C110=1,$F$6*$J$5*VLOOKUP(K110,$AA$2:$AB$13,2),($F$6*VLOOKUP(K110,$AA$2:$AB$13,2))*-1) -> 16 | M110: 1380 | N110: 0.01 | O110: =IF(C110=1,$F$6*$J$5*VLOOKUP(N110,$AA$2:$AB$13,2),($F$6*VLOOKUP(N110,$AA$2:$AB$13,2))*-1) -> 4 | P110: 1124 | Q110: 35.99046763 | R110: 1835.513849 | S110: 1.4 | T110: 0.04 | U110: 1.3 | V110: 0.04 | W110: 1.3 | X110: 0.04
B111: 98 | C111: 1 | D111: TP | E111: 0.08 | F111: 32 | G111: 1474 | H111: 0.08 | I111: 32 | J111: 1412 | K111: 0.08 | L111: 32 | M111: 1412 | N111: 0.01 | O111: 4 | P111: 1128 | Q111: 36.71027698 | R111: 1872.224126 | S111: 1.4 | T111: 0.08 | U111: 1.3 | V111: 0.08 | W111: 1.3 | X111: 0.08
B112: 99 | C112: 1 | D112: TP | E112: 0.16 | F112: 64 | G112: 1538 | H112: 0.16 | I112: 64 | J112: 1476 | K112: 0.16 | L112: 64 | M112: 1476 | N112: 0.01 | O112: 4 | P112: 1132 | Q112: 37.44448252 | R112: 1909.668609 | S112: 1.4 | T112: 0.16 | U112: 1.4 | V112: 0.16 | W112: 1.4 | X112: 0.16
B113: 100 | C113: 1 | D113: TP | E113: 0.01 | F113: 4 | G113: 1542 | H113: 0.32 | I113: 128 | J113: 1604 | K113: 0.32 | L113: 128 | M113: 1604 | N113: 0.01 | O113: 4 | P113: 1136 | Q113: 38.19337218 | R113: 1947.861981 | S113: 1.5 | T113: 0.01 | U113: 1.4 | V113: 0.32 | W113: 1.4 | X113: 0.32

Sheet MONTECARLO
C4: 5 CONSECUTIVAS | D4: 7 CONSECUTIVAS | E4: 9 CONSECUTIVAS | F4: LOTE FIJO | H4: Resultados
B5: 1 | C5: 1450 | D5: 1264 | E5: 1264 | F5: 1130 | I5: PROMEDIO
B6: 2 | C6: 1404 | D6: 1404 | E6: 1404 | F6: 1166 | H6: 0 cons. (lote fijo) | I6: =AVERAGE(F5:F104) -> 1163.3
B7: 3 | C7: 1224 | D7: 1224 | E7: 1224 | F7: 1142 | H7: ="Dob. "&5&" cons" -> Dob. 5 cons | I7: =AVERAGE(C5:C104) -> 1535.72
B8: 4 | C8: 1496 | D8: 3142 | E8: 4776 | F8: 1166 | H8: ="Dob. "&7&" cons" -> Dob. 7 cons | I8: =AVERAGE(D5:D104) -> 2117.66
B9: 5 | C9: 1696 | D9: 1820 | E9: 1820 | F9: 1178 | H9: ="Dob. "&9&" cons" -> Dob. 9 cons | I9: =AVERAGE(E5:E104) -> 3178.02
B10: 6 | C10: 1648 | D10: 1884 | E10: 3552 | F10: 1178
B11: 7 | C11: 1282 | D11: 1654 | E11: 1654 | F11: 1160
B12: 8 | C12: 1554 | D12: 1802 | E12: 1802 | F12: 1166
B13: 9 | C13: 1326 | D13: 1642 | E13: 1388 | F13: 1130
B14: 10 | C14: 1568 | D14: 2280 | E14: 7542 | F14: 1160
B15: 11 | C15: 1396 | D15: 2166 | E15: 1892 | F15: 1166
B16: 12 | C16: 1680 | D16: 1432 | E16: 1432 | F16: 1190
B17: 13 | C17: 1472 | D17: 1348 | E17: 1348 | F17: 1142
B18: 14 | C18: 1258 | D18: 1134 | E18: 1134 | F18: 1088
B19: 15 | C19: 1518 | D19: 1394 | E19: 1394 | F19: 1130
B20: 16 | C20: 1876 | D20: 2006 | E20: 1752 | F20: 1220
B21: 17 | C21: 1800 | D21: 3436 | E21: 13868 | F21: 1220
B22: 18 | C22: 1796 | D22: 1822 | E22: 3594 | F22: 1172
B23: 19 | C23: 1356 | D23: 1728 | E23: 1728 | F23: 1148
B24: 20 | C24: 1920 | D24: 2624 | E24: 2312 | F24: 1190
B25: 21 | C25: 1276 | D25: 1276 | E25: 1276 | F25: 1160
B26: 22 | C26: 1402 | D26: 1278 | E26: 1278 | F26: 1124
B27: 23 | C27: 1586 | D27: 3234 | E27: 6314 | F27: 1172
B28: 24 | C28: 1330 | D28: 1330 | E28: 1330 | F28: 1154
B29: 25 | C29: 2138 | D29: 8292 | E29: 14324 | F29: 1226
B30: 26 | C30: 1278 | D30: 1656 | E30: 1402 | F30: 1154
B31: 27 | C31: 1968 | D31: 2502 | E31: 4014 | F31: 1208
B32: 28 | C32: 1240 | D32: 1178 | E32: 1178 | F32: 1130
B33: 29 | C33: 1154 | D33: 1154 | E33: 1154 | F33: 1130
B34: 30 | C34: 1692 | D34: 3354 | E34: 13972 | F34: 1220
B35: 31 | C35: 1620 | D35: 3196 | E35: 8406 | F35: 1172
B36: 32 | C36: 1218 | D36: 1218 | E36: 1218 | F36: 1124
B37: 33 | C37: 1306 | D37: 2072 | E37: 3224 | F37: 1124
B38: 34 | C38: 1488 | D38: 1364 | E38: 1364 | F38: 1166
B39: 35 | C39: 1680 | D39: 2334 | E39: 3858 | F39: 1154
B40: 36 | C40: 1278 | D40: 1216 | E40: 1216 | F40: 1142
B41: 37 | C41: 1824 | D41: 1700 | E41: 1700 | F41: 1184
B42: 38 | C42: 1564 | D42: 1838 | E42: 3666 | F42: 1148
B43: 39 | C43: 1658 | D43: 1912 | E43: 1658 | F43: 1196
B44: 40 | C44: 1434 | D44: 2140 | E44: 1868 | F44: 1148
B45: 41 | C45: 1432 | D45: 2220 | E45: 1618 | F45: 1142
B46: 42 | C46: 1630 | D46: 1816 | E46: 1816 | F46: 1184
B47: 43 | C47: 1686 | D47: 2278 | E47: 7538 | F47: 1166
B48: 44 | C48: 1812 | D48: 3426 | E48: 7864 | F48: 1214
B49: 45 | C49: 1620 | D49: 1874 | E49: 1620 | F49: 1178
B50: 46 | C50: 1448 | D50: 1764 | E50: 1510 | F50: 1136
B51: 47 | C51: 1490 | D51: 1868 | E51: 1614 | F51: 1178
B52: 48 | C52: 2606 | D52: 6498 | E52: 16006 | F52: 1250
B53: 49 | C53: 1272 | D53: 1650 | E53: 1396 | F53: 1106
B54: 50 | C54: 1934 | D54: 3540 | E54: 6082 | F54: 1202
B55: 51 | C55: 1362 | D55: 1740 | E55: 1486 | F55: 1160
B56: 52 | C56: 1624 | D56: 1922 | E56: 3482 | F56: 1184
B57: 53 | C57: 1624 | D57: 1788 | E57: 3502 | F57: 1178
B58: 54 | C58: 1458 | D58: 1712 | E58: 1458 | F58: 1136
B59: 55 | C59: 1520 | D59: 3196 | E59: 2438 | F59: 1184
B60: 56 | C60: 1636 | D60: 3258 | E60: 10620 | F60: 1184
B61: 57 | C61: 1184 | D61: 1556 | E61: 1556 | F61: 1100
B62: 58 | C62: 1678 | D62: 1870 | E62: 1616 | F62: 1160
B63: 59 | C63: 1466 | D63: 1466 | E63: 1466 | F63: 1130
B64: 60 | C64: 1500 | D64: 1376 | E64: 1376 | F64: 1166
B65: 61 | C65: 1200 | D65: 1560 | E65: 3100 | F65: 1124
B66: 62 | C66: 1492 | D66: 1746 | E66: 1492 | F66: 1160
B67: 63 | C67: 1420 | D67: 1234 | E67: 1234 | F67: 1130
B68: 64 | C68: 1602 | D68: 2442 | E68: 2064 | F68: 1196
B69: 65 | C69: 1704 | D69: 2512 | E69: 8134 | F69: 1232
B70: 66 | C70: 1508 | D70: 1806 | E70: 3628 | F70: 1142
B71: 67 | C71: 1352 | D71: 1730 | E71: 1476 | F71: 1148
B72: 68 | C72: 1704 | D72: 2520 | E72: 3754 | F72: 1166
B73: 69 | C73: 1628 | D73: 2278 | E73: 1752 | F73: 1190
B74: 70 | C74: 1200 | D74: 1572 | E74: 1572 | F74: 1100
B75: 71 | C75: 1296 | D75: 1172 | E75: 1172 | F75: 1100
B76: 72 | C76: 1574 | D76: 1388 | E76: 1388 | F76: 1154
B77: 73 | C77: 1310 | D77: 1248 | E77: 1248 | F77: 1130
B78: 74 | C78: 1646 | D78: 3400 | E78: 2216 | F78: 1208
B79: 75 | C79: 1550 | D79: 2308 | E79: 1798 | F79: 1154
B80: 76 | C80: 1696 | D80: 1908 | E80: 3458 | F80: 1184
B81: 77 | C81: 1628 | D81: 3434 | E81: 3928 | F81: 1196
B82: 78 | C82: 1694 | D82: 1868 | E82: 3392 | F82: 1166
B83: 79 | C83: 1902 | D83: 3766 | E83: 2994 | F83: 1232
B84: 80 | C84: 1588 | D84: 2324 | E84: 2324 | F84: 1208
B85: 81 | C85: 1670 | D85: 2348 | E85: 4006 | F85: 1172
B86: 82 | C86: 1218 | D86: 1156 | E86: 1156 | F86: 1118
B87: 83 | C87: 1624 | D87: 1940 | E87: 1686 | F87: 1190
B88: 84 | C88: 1560 | D88: 1814 | E88: 1560 | F88: 1190
B89: 85 | C89: 1510 | D89: 1784 | E89: 3566 | F89: 1154
B90: 86 | C90: 1216 | D90: 1594 | E90: 1340 | F90: 1136
B91: 87 | C91: 1426 | D91: 2188 | E91: 1860 | F91: 1142
B92: 88 | C92: 1412 | D92: 1710 | E92: 3252 | F92: 1118
B93: 89 | C93: 1112 | D93: 1112 | E93: 1112 | F93: 1106
B94: 90 | C94: 1644 | D94: 1836 | E94: 3398 | F94: 1154
B95: 91 | C95: 1456 | D95: 1766 | E95: 3288 | F95: 1130
B96: 92 | C96: 1476 | D96: 2184 | E96: 2184 | F96: 1148
B97: 93 | C97: 1710 | D97: 3302 | E97: 4028 | F97: 1184
B98: 94 | C98: 1116 | D98: 1116 | E98: 1116 | F98: 1112
B99: 95 | C99: 1980 | D99: 6520 | E99: 10786 | F99: 1244
B100: 96 | C100: 1500 | D100: 1376 | E100: 1376 | F100: 1160
B101: 97 | C101: 1724 | D101: 1812 | E101: 3562 | F101: 1196
B102: 98 | C102: 1656 | D102: 2580 | E102: 4098 | F102: 1160
B103: 99 | C103: 1232 | D103: 1170 | E103: 1170 | F103: 1148
B104: 100 | C104: 1800 | D104: 1974 | E104: 3770 | F104: 1232
